fUSD/lending_fUSD_20240105
["ID","MTS","AMOUNT","RATE_DAILY","PERIOD"]
[310290956,1704463889980,-947.41,0.00030877,2]
[310290957,1704463889989,-500.0,0.00030877,2]
[310290958,1704463889997,-500.0,0.00030877,2]
[310290959,1704463890006,-151.70484157,0.00030877,2]
[310290960,1704463890017,-500.0,0.00030877,2]
[310290961,1704463890027,-500.0,0.00030877,2]
[310290962,1704463890039,-2917.19,0.00030877,2]
[310290963,1704463890049,-500.0,0.00030877,2]
[310290964,1704463890058,-500.0,0.00030877,2]
[310290965,1704463890068,-1039.42,0.00030877,2]
[310290966,1704463890077,-500.0,0.00030877,2]
[310290967,1704463890086,-588.09,0.00030877,2]
[310290968,1704463890096,-500.0,0.00030877,2]
[310290969,1704463890105,-500.0,0.00030877,2]
[310290970,1704463890115,-984.84,0.00030877,2]
[310290971,1704463890124,-351.98074328,0.00030877,2]
[310290972,1704463890133,-418.04616953,0.00030877,2]
[310290973,1704463890144,-1577.2,0.00030877,2]
[310290974,1704463890155,-512.73037898,0.00030877,2]
[310290975,1704463890166,-500.0,0.00030877,2]
[310290976,1704463890175,-500.0,0.00030877,2]
[310290977,1704463890183,-1004.25,0.00030877,2]
[310290978,1704463890193,-500.0,0.00030877,2]
[310290979,1704463890203,-500.0,0.00030877,2]
[310290980,1704463890212,-503.89773055,0.00030877,2]
[310290981,1704463890222,-941.19,0.00030877,2]
[310290982,1704463890231,-500.0,0.00030877,2]
[310290983,1704463890240,-500.0,0.00030877,2]
[310290984,1704463890250,-587.5,0.00030877,2]
[310290985,1704463890262,-500.0,0.00030877,2]
[310290986,1704463890272,-500.0,0.00030877,2]
[310290987,1704463890283,-684.69,0.00030877,2]
[310290988,1704463890292,-500.0,0.00030877,2]
[310290989,1704463890301,-502.66,0.00030877,2]
[310290990,1704463890313,-500.0,0.00030877,2]
[310290991,1704463890322,-500.0,0.00030877,2]
[310290992,1704463890331,-1249.93,0.00030877,2]
[310290993,1704463890341,-700.39,0.00030877,2]
[310290994,1704463890351,-960.04,0.00030877,2]
[310290995,1704463890361,-500.0,0.00030877,2]
[310290996,1704463890371,-500.0,0.00030877,2]
[310290997,1704463890381,-537.41,0.00030877,2]
[310290998,1704463890394,-667.92,0.00030877,2]
[310290999,1704463890405,-510.05,0.00030877,2]
[310291000,1704463890414,-978.16,0.00030877,2]
[310291001,1704463890424,-500.0,0.00030877,2]
[310291002,1704463890434,-945.97,0.00030877,2]
[310291003,1704463890444,-1019.98,0.00030877,2]
[310291004,1704463890454,-500.0,0.00030877,2]
[310291005,1704463890464,-803.57,0.00030877,2]
[310291006,1704463890474,-889.76,0.00030877,2]
[310291007,1704463890484,-500.0,0.00030877,2]
[310291008,1704463890494,-610.92,0.00030877,2]
[310291009,1704463890504,-500.0,0.00030877,2]
[310291010,1704463890515,-605.09,0.00030877,2]
[310291011,1704463890525,-500.0,0.00030877,2]
[310291012,1704463890536,-500.0,0.00030877,2]
[310291013,1704463890546,-571.57,0.00030877,2]
[310291014,1704463890556,-500.0,0.00030877,2]
[310291015,1704463890566,-500.0,0.00030877,2]
[310291016,1704463890576,-500.0,0.00030877,2]
[310291017,1704463890585,-500.0,0.00030877,2]
[310291018,1704463890596,-500.0,0.00030877,2]
[310291019,1704463890606,-500.0,0.00030877,2]
[310291020,1704463890617,-500.0,0.00030877,2]
[310291021,1704463890627,-500.0,0.00030877,2]
[310291022,1704463890637,-500.0,0.00030877,2]
[310291023,1704463890648,-151.0,0.00030878,7]
[310291024,1704463890658,-501.4746467,0.00030878,2]
[310291025,1704463890668,-161.3155,0.00030878,7]
[310291026,1704463890678,-161.3155,0.00030878,7]
[310291027,1704463890688,-163.4,0.00030878,7]
[310291028,1704463890700,-163.4,0.00030878,7]
[310291029,1704463890710,-711.32,0.00030879,2]
[310291030,1704463890721,-418.72,0.00030896,2]
[310291031,1704463890731,-151.0,0.000309,7]
[310291032,1704463890741,-151.0,0.000309,7]
[310291033,1704463890752,-218.830541,0.000309,7]
[310291034,1704463890763,-237.305407,0.000309,7]
[310291035,1704463890773,-189.18259,0.000309,2]
[310291036,1704463890784,-365.60499966,0.00030955,2]
[310291037,1704463890794,-500.0,0.00030958,2]
[310291038,1704463890803,-500.0,0.00030958,2]
[310291039,1704463890813,-558.81838402,0.00030958,2]
[310291040,1704463890823,-500.0,0.00030958,2]
[310291041,1704463890833,-500.0,0.00030958,2]
[310291042,1704463890843,-500.0,0.00030958,2]
[310291043,1704463890853,-156.70887057,0.00030958,2]
[310291044,1704463890863,-578.99,0.00030958,2]
[310291045,1704463890873,-570.77,0.00030958,2]
[310291046,1704463890884,-500.0,0.00030958,2]
[310291047,1704463890894,-500.0,0.00030958,2]
[310291048,1704463890904,-500.0,0.00030958,2]
[310291049,1704463890914,-500.0,0.00030958,2]
[310291050,1704463890923,-500.0,0.00030958,2]
[310291051,1704463890933,-500.0,0.00030958,2]
[310291052,1704463890942,-500.0,0.00030958,2]
[310291053,1704463890952,-500.0,0.00030958,2]
[310291054,1704463890962,-500.0,0.00030958,2]
[310291055,1704463890972,-500.0,0.00030958,2]
[310291056,1704463890982,-500.0,0.00030958,2]
[310291057,1704463890992,-500.0,0.00030958,2]
[310291058,1704463891002,-500.0,0.00030958,2]
[310291059,1704463891012,-500.0,0.00030958,2]
[310291060,1704463891022,-964.18,0.00030958,2]
[310291061,1704463891033,-500.0,0.00030958,2]
[310291062,1704463891043,-183.52074848,0.00030958,2]
[310291063,1704463891054,-180.54,0.00030958,2]
[310291064,1704463891064,-500.0,0.00030958,2]
[310291065,1704463891075,-500.0,0.00030958,2]
[310291066,1704463891085,-500.0,0.00030958,2]
[310291067,1704463891095,-500.0,0.00030958,2]
[310291068,1704463891105,-500.0,0.00030958,2]
[310291069,1704463891115,-500.0,0.00030958,2]
[310291070,1704463891126,-500.0,0.00030958,2]
[310291071,1704463891137,-516.58454694,0.00030958,2]
[310291072,1704463891148,-500.0,0.00030958,2]
[310291073,1704463891160,-500.0,0.00030958,2]
[310291074,1704463891172,-500.0,0.00030958,2]
[310291075,1704463891184,-500.0,0.00030958,2]
[310291076,1704463891196,-500.0,0.00030958,2]
[310291077,1704463891207,-500.0,0.00030958,2]
[310291078,1704463891218,-500.0,0.00030958,2]
[310291079,1704463891231,-500.0,0.00030958,2]
[310291080,1704463891242,-500.0,0.00030958,2]
[310291081,1704463891253,-500.0,0.00030958,2]
[310291082,1704463891265,-500.0,0.00030958,2]
[310291083,1704463891276,-397.68040822,0.00030958,2]
[310291084,1704463891288,-500.0,0.00030958,2]
[310291085,1704463891298,-216.0985272,0.00030958,2]
[310291086,1704463891308,-500.0,0.00030958,2]
[310291087,1704463891317,-500.0,0.00030958,2]
[310291088,1704463891328,-500.0,0.00030958,2]
[310291089,1704463891338,-500.0,0.00030958,2]
[310291090,1704463891348,-500.0,0.00030958,2]
[310291091,1704463891357,-297.39125926,0.00030958,2]
[310291092,1704463891367,-500.0,0.00030958,2]
[310291093,1704463891376,-500.0,0.00030958,2]
[310291094,1704463891387,-500.0,0.00030958,2]
[310291095,1704463891397,-255.6049731,0.00030958,2]
[310291096,1704463891407,-500.0,0.00030958,2]
[310291097,1704463891418,-500.0,0.00030958,2]
[310291098,1704463891428,-500.0,0.00030958,2]
[310291099,1704463891438,-344.96370978,0.00030958,2]
[310291100,1704463891448,-538.53426178,0.00030958,2]
[310291101,1704463891458,-526.60245131,0.00030958,2]
[310291102,1704463891468,-500.0,0.00030958,2]
[310291103,1704463891479,-500.0,0.00030958,2]
[310291104,1704463891489,-500.0,0.00030958,2]
[310291105,1704463891499,-356.84626627,0.00030958,2]
[310291106,1704463891509,-500.0,0.00030958,2]
[310291107,1704463891519,-500.0,0.00030958,2]
[310291108,1704463891529,-500.0,0.00030958,2]
[310291109,1704463891542,-500.0,0.00030958,2]
[310291110,1704463891552,-500.0,0.00030958,2]
[310291111,1704463891563,-776.92,0.00030958,2]
[310291112,1704463891574,-500.0,0.00030958,2]
[310291113,1704463891584,-500.0,0.00030958,2]
[310291114,1704463891595,-500.0,0.00030958,2]
[310291115,1704463891605,-518.15106899,0.00030958,2]
[310291116,1704463891615,-516.81116812,0.00030958,2]
[310291117,1704463891625,-500.0,0.00030958,2]
[310291118,1704463891635,-500.0,0.00030958,2]
[310291119,1704463891646,-229.16947822,0.00030958,2]
[310291120,1704463891656,-500.0,0.00030958,2]
[310291121,1704463891666,-500.0,0.00030958,2]
[310291122,1704463891676,-500.0,0.00030958,2]
[310291123,1704463891686,-500.0,0.00030958,2]
[310291124,1704463891696,-500.0,0.00030958,2]
[310291125,1704463891706,-500.0,0.00030958,2]
[310291126,1704463891716,-500.0,0.00030958,2]
[310291127,1704463891726,-754.78,0.00030958,2]
[310291128,1704463891736,-500.0,0.00030958,2]
[310291129,1704463891746,-608.57,0.00030958,2]
[310291130,1704463891756,-500.0,0.00030958,2]
[310291131,1704463891767,-489.54332639,0.00030958,2]
[310291132,1704463891778,-500.0,0.00030958,2]
[310291133,1704463891790,-500.0,0.00030958,2]
[310291134,1704463891800,-500.0,0.00030958,2]
[310291135,1704463891810,-500.0,0.00030958,2]
[310291136,1704463891820,-500.0,0.00030958,2]
[310291137,1704463891830,-500.0,0.00030958,2]
[310291138,1704463891840,-500.0,0.00030958,2]
[310291139,1704463891850,-500.0,0.00030958,2]
[310291140,1704463891860,-554.38117696,0.00030958,2]
[310291141,1704463891870,-574.49,0.00030958,2]
[310291142,1704463891880,-500.0,0.00030958,2]
[310291143,1704463891890,-500.0,0.00030958,2]
[310291144,1704463891901,-500.0,0.00030958,2]
[310291145,1704463891912,-500.0,0.00030958,2]
[310291146,1704463891922,-500.0,0.00030958,2]
[310291147,1704463891932,-597.18,0.00030958,2]
[310291148,1704463891942,-500.0,0.00030958,2]
[310291149,1704463891951,-500.0,0.00030958,2]
[310291150,1704463891961,-500.0,0.00030958,2]
[310291151,1704463891971,-500.0,0.00030958,2]
[310291152,1704463891980,-500.0,0.00030958,2]
[310291153,1704463891990,-626.31446913,0.00030958,2]
[310291154,1704463892000,-500.0,0.00030958,2]
[310291155,1704463892010,-1000.0,0.00030958,2]
[310291156,1704463892020,-500.0,0.00030958,2]
[310291157,1704463892030,-535.87,0.00030958,2]
[310291158,1704463892040,-500.0,0.00030958,2]
[310291159,1704463892050,-500.0,0.00030958,2]
[310291160,1704463892059,-581.08117164,0.00030958,2]
[310291161,1704463892069,-500.0,0.00030958,2]
[310291162,1704463892079,-611.65512882,0.00030958,2]
[310291163,1704463892088,-500.0,0.00030958,2]
[310291164,1704463892099,-546.20884983,0.00030958,2]
[310291165,1704463892109,-500.0,0.00030958,2]
[310291166,1704463892119,-500.0,0.00030958,2]
[310291167,1704463892129,-500.0,0.00030958,2]
[310291168,1704463892139,-500.0,0.00030958,2]
[310291169,1704463892149,-500.0,0.00030958,2]
[310291170,1704463892160,-500.0,0.00030958,2]
[310291171,1704463892170,-500.0,0.00030958,2]
[310291172,1704463892183,-500.0,0.00030958,2]
[310291173,1704463892206,-500.0,0.00030958,2]
[310291174,1704463892217,-521.83225931,0.00030958,2]
[310291175,1704463892227,-448.92515754,0.00030958,2]
[310291176,1704463892237,-500.0,0.00030958,2]
[310291177,1704463892247,-641.02662535,0.00030958,2]
[310291178,1704463892257,-500.0,0.00030958,2]
[310291179,1704463892267,-578.15239396,0.00030958,2]
[310291180,1704463892276,-500.0,0.00030958,2]
[310291181,1704463892286,-847.71,0.00030958,2]
[310291182,1704463892297,-500.0,0.00030958,2]
[310291183,1704463892307,-500.0,0.00030958,2]
[310291184,1704463892316,-500.0,0.00030958,2]
[310291185,1704463892326,-500.0,0.00030958,2]
[310291186,1704463892336,-500.0,0.00030958,2]
[310291187,1704463892346,-500.0,0.00030958,2]
[310291188,1704463892356,-500.0,0.00030958,2]
[310291189,1704463892368,-500.0,0.00030958,2]
[310291190,1704463892383,-500.0,0.00030958,2]
[310291191,1704463892393,-500.0,0.00030958,2]
[310291192,1704463892403,-500.0,0.00030958,2]
[310291193,1704463892413,-500.0,0.00030958,2]
[310291194,1704463892423,-184.72090851,0.00030958,2]
[310291195,1704463892434,-500.0,0.00030958,2]
[310291196,1704463892444,-500.0,0.00030958,2]
[310291197,1704463892455,-500.0,0.00030958,2]
[310291198,1704463892465,-500.0,0.00030958,2]
[310291199,1704463892475,-270.8374273,0.00030958,2]
[310291200,1704463892485,-939.06,0.00030958,2]
[310291201,1704463892495,-500.0,0.00030958,2]
[310291202,1704463892505,-500.0,0.00030958,2]
[310291203,1704463892515,-500.0,0.00030958,2]
[310291204,1704463892524,-500.0,0.00030958,2]
[310291205,1704463892536,-500.0,0.00030958,2]
[310291206,1704463892546,-500.0,0.00030958,2]
[310291207,1704463892556,-500.0,0.00030958,2]
[310291208,1704463892566,-500.0,0.00030958,2]
[310291209,1704463892575,-500.0,0.00030958,2]
[310291210,1704463892585,-500.0,0.00030958,2]
[310291211,1704463892595,-617.42,0.00030958,2]
[310291212,1704463892605,-500.0,0.00030958,2]
[310291213,1704463892616,-500.0,0.00030958,2]
[310291214,1704463892630,-500.0,0.00030958,2]
[310291215,1704463892640,-500.0,0.00030958,2]
[310291216,1704463892650,-500.0,0.00030958,2]
[310291217,1704463892660,-500.0,0.00030958,2]
[310291218,1704463892671,-500.0,0.00030958,2]
[310291219,1704463892681,-763.35,0.00030958,2]
[310291220,1704463892691,-500.0,0.00030958,2]
[310291221,1704463892703,-165.23368045,0.00030958,2]
[310291222,1704463892712,-581.06,0.00030958,2]
[310291223,1704463892722,-500.0,0.00030958,2]
[310291224,1704463892732,-513.41956864,0.00030958,2]
[310291225,1704463892741,-533.25,0.00030958,2]
[310291226,1704463892751,-469.7167948,0.00030958,2]
[310291227,1704463892761,-500.0,0.00030958,2]
[310291228,1704463892771,-500.0,0.00030958,2]
[310291229,1704463892781,-1032.57,0.00030958,2]
[310291230,1704463892792,-500.0,0.00030958,2]
[310291231,1704463892802,-668.81,0.00030958,2]
[310291232,1704463892811,-500.0,0.00030958,2]
[310291233,1704463892821,-897.42,0.00030958,2]
[310291234,1704463892832,-500.0,0.00030958,2]
[310291235,1704463892842,-500.0,0.00030958,2]
[310291236,1704463892852,-610.9,0.00030958,2]
[310291237,1704463892862,-542.23,0.00030958,2]
[310291238,1704463892871,-500.0,0.00030958,2]
[310291239,1704463892881,-500.0,0.00030958,2]
[310291240,1704463892891,-500.0,0.00030958,2]
[310291241,1704463892901,-500.0,0.00030958,2]
[310291242,1704463892911,-500.0,0.00030958,2]
[310291243,1704463892921,-500.0,0.00030958,2]
[310291244,1704463892931,-977.28,0.00030958,2]
[310291245,1704463892940,-500.0,0.00030958,2]
[310291246,1704463892950,-500.0,0.00030958,2]
[310291247,1704463892960,-500.0,0.00030958,2]
[310291248,1704463892969,-500.0,0.00030958,2]
[310291249,1704463893175,-500.0,0.00030958,2]
[310291250,1704463893186,-564.72,0.00030958,2]
[310291251,1704463893196,-500.0,0.00030958,2]
[310291252,1704463893206,-500.0,0.00030958,2]
[310291253,1704463893216,-623.13,0.00030958,2]
[310291254,1704463893226,-500.0,0.00030958,2]
[310291255,1704463893235,-626.00257833,0.00030958,2]
[310291256,1704463893245,-500.0,0.00030958,2]
[310291257,1704463893255,-392.1456895,0.00030958,2]
[310291258,1704463893265,-660.13,0.00030958,2]
[310291259,1704463893275,-506.60223696,0.00030958,2]
[310291260,1704463893286,-219.74587546,0.00030958,2]
[310291261,1704463893295,-500.0,0.00030958,2]
[310291262,1704463893305,-500.0,0.00030958,2]
[310291263,1704463893315,-1107.9,0.00030958,2]
[310291264,1704463893326,-500.0,0.00030958,2]
[310291265,1704463893336,-500.0,0.00030958,2]
[310291266,1704463893345,-500.0,0.00030958,2]
[310291267,1704463893355,-511.07278817,0.00030958,2]
[310291268,1704463893364,-500.0,0.00030958,2]
[310291269,1704463893374,-500.0,0.00030958,2]
[310291270,1704463893384,-500.0,0.00030958,2]
[310291271,1704463893394,-217.17280431,0.00030958,2]
[310291272,1704463893403,-500.0,0.00030958,2]
[310291273,1704463893413,-534.02,0.00030958,2]
[310291274,1704463893423,-500.0,0.00030958,2]
[310291275,1704463893432,-505.2380869,0.00030958,2]
[310291276,1704463893442,-1001.59,0.00030958,2]
[310291277,1704463893454,-500.0,0.00030958,2]
[310291278,1704463893463,-500.0,0.00030958,2]
[310291279,1704463893473,-500.0,0.00030958,2]
[310291280,1704463893482,-500.0,0.00030958,2]
[310291281,1704463893492,-500.0,0.00030958,2]
[310291282,1704463893502,-500.0,0.00030958,2]
[310291283,1704463893512,-500.0,0.00030958,2]
[310291284,1704463893522,-500.0,0.00030958,2]
[310291285,1704463893531,-577.73,0.00030958,2]
[310291286,1704463893542,-500.0,0.00030958,2]
[310291287,1704463893552,-500.0,0.00030958,2]
[310291288,1704463893561,-500.0,0.00030958,2]
[310291289,1704463893571,-506.64718779,0.00030958,2]
[310291290,1704463893581,-515.35,0.00030958,2]
[310291291,1704463893592,-500.0,0.00030958,2]
[310291292,1704463893601,-500.0,0.00030958,2]
[310291293,1704463893611,-500.0,0.00030958,2]
[310291294,1704463893621,-150.18222188,0.00030958,2]
[310291295,1704463893631,-525.55750123,0.00030958,2]
[310291296,1704463893640,-500.0,0.00030958,2]
[310291297,1704463893650,-511.8928033,0.00030958,2]
[310291298,1704463893660,-528.01,0.00030958,2]
[310291299,1704463893670,-500.0,0.00030958,2]
[310291300,1704463893679,-500.0,0.00030958,2]
[310291301,1704463893689,-500.0,0.00030958,2]
[310291302,1704463893701,-628.35577178,0.00030958,2]
[310291303,1704463893717,-312.17652473,0.00030958,2]
[310291304,1704463893726,-500.0,0.00030958,2]
[310291305,1704463893736,-511.05037204,0.00030958,2]
[310291306,1704463893746,-609.91,0.00030958,2]
[310291307,1704463893756,-500.0,0.00030958,2]
[310291308,1704463893766,-500.0,0.00030958,2]
[310291309,1704463893775,-252.67400732,0.00030958,2]
[310291310,1704463893786,-500.0,0.00030958,2]
[310291311,1704463893795,-3164.14,0.00030958,2]
[310291312,1704463893804,-500.0,0.00030958,2]
[310291313,1704463893813,-508.10628505,0.00030958,2]
[310291314,1704463893823,-500.0,0.00030958,2]
[310291315,1704463893832,-500.0,0.00030958,2]
[310291316,1704463893842,-767.51,0.00030958,2]
[310291317,1704463893852,-500.0,0.00030958,2]
[310291318,1704463893861,-500.0,0.00030958,2]
[310291319,1704463893871,-500.0,0.00030958,2]
[310291320,1704463893881,-500.0,0.00030958,2]
[310291321,1704463893890,-500.0,0.00030958,2]
[310291322,1704463893900,-500.0,0.00030958,2]
[310291323,1704463893911,-500.0,0.00030958,2]
[310291324,1704463893921,-500.0,0.00030958,2]
[310291325,1704463893932,-500.0,0.00030958,2]
[310291326,1704463893951,-525.47794942,0.00030958,2]
[310291327,1704463893964,-500.0,0.00030958,2]
[310291328,1704463893974,-500.0,0.00030958,2]
[310291329,1704463893983,-572.23,0.00030958,2]
[310291330,1704463893993,-500.0,0.00030958,2]
[310291331,1704463894002,-500.0,0.00030958,2]
[310291332,1704463894012,-500.0,0.00030958,2]
[310291333,1704463894021,-1043.05,0.00030958,2]
[310291334,1704463894031,-563.18687815,0.00030958,2]
[310291335,1704463894041,-533.89645378,0.00030958,2]
[310291336,1704463894050,-663.96,0.00030958,2]
[310291337,1704463894059,-500.0,0.00030958,2]
[310291338,1704463894069,-500.0,0.00030958,2]
[310291339,1704463894079,-969.42,0.00030958,2]
[310291340,1704463894089,-500.0,0.00030958,2]
[310291341,1704463894098,-500.0,0.00030958,2]
[310291342,1704463894107,-500.0,0.00030958,2]
[310291343,1704463894117,-500.0,0.00030958,2]
[310291344,1704463894126,-500.0,0.00030958,2]
[310291345,1704463894136,-500.0,0.00030958,2]
[310291346,1704463894145,-951.95,0.00030958,2]
[310291347,1704463894155,-500.0,0.00030958,2]
[310291348,1704463894165,-500.0,0.00030958,2]
[310291349,1704463894174,-500.0,0.00030958,2]
[310291350,1704463894185,-500.0,0.00030958,2]
[310291351,1704463894194,-500.0,0.00030958,2]
[310291352,1704463894203,-500.0,0.00030958,2]
[310291353,1704463894212,-500.0,0.00030958,2]
[310291354,1704463894222,-585.0,0.00030958,2]
[310291355,1704463894231,-795.33,0.00030958,2]
[310291356,1704463894241,-500.0,0.00030958,2]
[310291357,1704463894250,-500.0,0.00030958,2]
[310291358,1704463894260,-500.0,0.00030958,2]
[310291359,1704463894269,-500.0,0.00030958,2]
[310291360,1704463894279,-500.0,0.00030958,2]
[310291361,1704463894289,-500.0,0.00030958,2]
[310291362,1704463894298,-500.0,0.00030958,2]
[310291363,1704463894308,-554.86147952,0.00030958,2]
[310291364,1704463894318,-500.0,0.00030958,2]
[310291365,1704463894327,-500.0,0.00030958,2]
[310291366,1704463894337,-564.97710388,0.00030958,2]
[310291367,1704463894346,-500.0,0.00030958,2]
[310291368,1704463894356,-552.11664229,0.00030958,2]
[310291369,1704463894365,-535.25,0.00030958,2]
[310291370,1704463894375,-500.0,0.00030958,2]
[310291371,1704463894384,-573.11,0.00030958,2]
[310291372,1704463894393,-579.61350101,0.00030958,2]
[310291373,1704463894403,-541.06572928,0.00030958,2]
[310291374,1704463894413,-500.0,0.00030958,2]
[310291375,1704463894423,-1278.92,0.00030958,2]
[310291376,1704463894433,-500.0,0.00030958,2]
[310291377,1704463894442,-500.0,0.00030958,2]
[310291378,1704463894453,-522.9,0.00030958,2]
[310291379,1704463894462,-1115.46,0.00030958,2]
[310291380,1704463894473,-500.0,0.00030958,2]
[310291381,1704463894483,-500.0,0.00030958,2]
[310291382,1704463894493,-500.0,0.00030958,2]
[310291383,1704463894502,-500.0,0.00030958,2]
[310291384,1704463894511,-423.83655399,0.00030958,2]
[310291385,1704463894521,-500.0,0.00030958,2]
[310291386,1704463894531,-503.15,0.00030958,2]
[310291387,1704463894542,-500.0,0.00030958,2]
[310291388,1704463894552,-500.0,0.00030958,2]
[310291389,1704463894561,-517.30914499,0.00030958,2]
[310291390,1704463894571,-500.0,0.00030958,2]
[310291391,1704463894580,-433.38485083,0.00030958,2]
[310291392,1704463894590,-898.64,0.00030958,2]
[310291393,1704463894600,-500.0,0.00030958,2]
[310291394,1704463894610,-500.0,0.00030958,2]
[310291395,1704463894623,-500.0,0.00030958,2]
[310291396,1704463894633,-500.0,0.00030958,2]
[310291397,1704463894643,-519.11214352,0.00030958,2]
[310291398,1704463894654,-511.57634712,0.00030958,2]
[310291399,1704463894664,-2197.46,0.00030958,2]
[310291400,1704463894674,-500.0,0.00030958,2]
[310291401,1704463894683,-500.0,0.00030958,2]
[310291402,1704463894695,-1050.63,0.00030958,2]
[310291403,1704463894705,-250.4125168,0.00030958,2]
[310291404,1704463894715,-500.0,0.00030958,2]
[310291405,1704463894724,-500.0,0.00030958,2]
[310291406,1704463894733,-500.0,0.00030958,2]
[310291407,1704463894743,-500.0,0.00030958,2]
[310291408,1704463894753,-512.25,0.00030958,2]
[310291409,1704463894763,-500.0,0.00030958,2]
[310291410,1704463894772,-500.0,0.00030958,2]
[310291411,1704463894782,-500.0,0.00030958,2]
[310291412,1704463894792,-500.0,0.00030958,2]
[310291413,1704463894802,-652.42,0.00030958,2]
[310291414,1704463894811,-500.0,0.00030958,2]
[310291415,1704463894821,-500.0,0.00030958,2]
[310291416,1704463894830,-500.96,0.00030958,2]
[310291417,1704463894839,-500.0,0.00030958,2]
[310291418,1704463894849,-500.0,0.00030958,2]
[310291419,1704463894858,-500.0,0.00030958,2]
[310291420,1704463894868,-586.12044737,0.00030958,2]
[310291421,1704463894877,-737.52,0.00030958,2]
[310291422,1704463894887,-500.0,0.00030958,2]
[310291423,1704463894896,-500.0,0.00030958,2]
[310291424,1704463894906,-500.0,0.00030958,2]
[310291425,1704463894915,-500.0,0.00030958,2]
[310291426,1704463894925,-500.0,0.00030958,2]
[310291427,1704463894935,-500.0,0.00030958,2]
[310291428,1704463894945,-1408.67,0.00030958,2]
[310291429,1704463894954,-500.0,0.00030958,2]
[310291430,1704463894964,-500.0,0.00030958,2]
[310291431,1704463894973,-500.0,0.00030958,2]
[310291432,1704463894982,-519.09,0.00030958,2]
[310291433,1704463894992,-500.0,0.00030958,2]
[310291434,1704463895001,-500.0,0.00030958,2]
[310291435,1704463895011,-500.0,0.00030958,2]
[310291436,1704463895020,-500.0,0.00030958,2]
[310291437,1704463895029,-500.0,0.00030958,2]
[310291438,1704463895039,-500.0,0.00030958,2]
[310291439,1704463895048,-500.0,0.00030958,2]
[310291440,1704463895058,-500.0,0.00030958,2]
[310291441,1704463895067,-500.0,0.00030958,2]
[310291442,1704463895078,-500.0,0.00030958,2]
[310291443,1704463895087,-1017.17,0.00030958,2]
[310291444,1704463895097,-557.29209465,0.00030958,2]
[310291445,1704463895106,-500.0,0.00030958,2]
[310291446,1704463895116,-500.0,0.00030958,2]
[310291447,1704463895125,-500.0,0.00030958,2]
[310291448,1704463895135,-500.0,0.00030958,2]
[310291449,1704463895145,-500.0,0.00030958,2]
[310291450,1704463895154,-1228.15,0.00030958,2]
[310291451,1704463895164,-500.0,0.00030958,2]
[310291452,1704463895174,-309.13591701,0.00030958,2]
[310291453,1704463895183,-1193.22,0.00030958,2]
[310291454,1704463895194,-500.0,0.00030958,2]
[310291455,1704463895204,-500.0,0.00030958,2]